Cogmind - Beta 9.5 @@@ ROGUE MODE // 2020.04.02 @ 20:44:10 Player: Kain Result: Destroyed by G-47 Trooper with Particle Gun Performance ------------- Evolutions (2) 1000 Regions Visited (5) 1000 Robots Destroyed (5) 25 Value Destroyed (107) 107 Prototype IDs (0) 0 Alien Tech Used (0) 0 Bonus (7) 7 TOTAL SCORE: 2139 Bonus ------- Follower Combat Kills 7 Cogmind --------- Core Integrity 0/550 Matter 294/300 Energy 100/100 System Corruption 0% Temperature Cool (18) Movement Core (300) Ox5 Location -8/Materials Parts ------- > --- POWER (2) -------- (None) > --- PROPULSION (3) --- (None) > --- UTILITY (3) ------ Large Storage Unit > --- WEAPON (3) ------- (None) > --- INVENTORY (10) --- Shotgun Peak State ------------ > --- POWER ------------ Light Ion Engine Light Deuterium Engine > --- PROPULSION ------- Light Treads Improved Treads > --- UTILITY ---------- Large Storage Unit > --- WEAPON ----------- Light Assault Rifle > --- INVENTORY -------- (None) [Rating: 9] Favorites ----------- Power Ion Engine Engine Ion Engine Propulsion Light Treads Treads Light Treads Wheel Compact Wheel Utility Large Storage Unit Storage Large Storage Unit Weapon Light Assault Rifle Energy Gun EM Pulse Gun Ballistic Gun Light Assault Rifle Special Weapon Mining Laser Build | -11 -10 -10 -10 -9 -8 ------- Run | Scr Mat Min Exi Min Mat Slots Evolved 4 | . . . . . 4 Power 1 | . . . . . 1 Propulsion 1 | . . . . . 1 Utility 1 | . . . . . 1 Weapon 1 | . . . . . 1 Parts Attached 15 | 9 1 . . 4 1 Power 3 | 1 . . . 1 1 Engine 3 | 1 . . . 1 1 Core . | . . . . . . Reactor . | . . . . . . Propulsion 6 | 5 . . . 1 . Treads 4 | 3 . . . 1 . Leg . | . . . . . . Wheel 2 | 2 . . . . . Hover . | . . . . . . Flight . | . . . . . . Utility 2 | 1 1 . . . . Device . | . . . . . . Storage 2 | 1 1 . . . . Processor . | . . . . . . Hackware . | . . . . . . Protection . | . . . . . . Artifact . | . . . . . . Weapon 4 | 2 . . . 2 . Energy Gun 1 | 1 . . . . . Energy Cannon . | . . . . . . Ballistic Gun 2 | 1 . . . 1 . Ballistic Cannon . | . . . . . . Launcher . | . . . . . . Special Weapon 1 | . . . . 1 . Impact Weapon . | . . . . . . Slashing Weapon . | . . . . . . Piercing Weapon . | . . . . . . Special Melee Weapon . | . . . . . . Unidentified Prototypes . | . . . . . . Parts Lost 10 | . . . . 5 5 Power 3 | . . . . 1 2 Propulsion 3 | . . . . 1 2 Utility . | . . . . . . Weapon 4 | . . . . 3 1 Highest Loss Streak 5 | . . . . 5 4 Average Slot Usage (%) 75 | . 83 85 85 60 39 Engine 11 | . 14 14 14 5 12 Treads 25 | . 28 28 28 22 10 Storage 13 | . 12 14 14 14 9 Energy Gun 10 | . 14 14 14 2 . Ballistic Gun 13 | . 14 14 14 14 6 Naked Turns . | . . . . . . Heaviest Build 25 | 12 24 24 24 24 25 Greatest Support 43 | 40 40 40 40 43 43 Greatest Overweight (x) 5 | . . . . . 5 Average Overweight (x) . | . . . . . . Largest Inventory Capacity 10 | 6 10 10 10 10 10 Average Capacity 9 | 5 7 10 10 10 10 Most Carried 4 | 4 2 3 3 2 1 Average Carried 1 | . . 1 2 . . Final Capacity 10 | 6 10 10 10 10 10 Final Carried 2 | . . 2 2 . 1 Class Distribution -------------------- 100% | Mutant Dominant Class ---------------- Mutant | -10/Materials Mutant | -10/Mines Mutant | -10/Exiles Mutant | -9/Mines Mutant | -8/Materials Resources | -11 -10 -10 -10 -9 -8 ----------- Run | Scr Mat Min Exi Min Mat Matter Collected 337 | 212 . . . 125 . Remotely . | . . . . . . Salvage Created 135 | . . 35 . 100 . Parts 5 | . . 4 . 1 . Haulers Intercepted . | . . . . . . Recyclers Shooed . | . . . . . . Parts Field Recycled . | . . . . . . Retrieved Matter . | . . . . . . Parts Self-Destructed . | . . . . . . Prevented . | . . . . . . Kills | -11 -10 -10 -10 -9 -8 ------- Run | Scr Mat Min Exi Min Mat Combat Hostiles Destroyed 4 | . . 2 . 2 . Guns 3 | . . 2 . 1 . Cannons 1 | . . . . 1 . Classes Destroyed 4 | . . 1 . 3 . Recycler 1 | . . . . 1 . Swarmer 2 | . . 2 . . . Grunt 1 | . . . . 1 . Duelist 1 | . . . . 1 . Best Kill Streak 2 | . . 2 . 1 . Combat Bots Only 2 | . . 2 . 1 . Max Kills in Single Turn 1 | . . 1 . 1 . Gunslinging . | . . . . . . Exploded . | . . . . . . Melee . | . . . . . . Uniques/NPCs Destroyed . | . . . . . . Combat | -11 -10 -10 -10 -9 -8 -------- Run | Scr Mat Min Exi Min Mat Damage Taken 1670 | . . 59 . 657 954 Core 689 | . . . . 131 558 Absorbed by Shields . | . . . . . . Core Remaining (%) 73 | 100 . . . 47 . Volleys Fired 59 | . . 5 . 32 22 Largest 2 | . . 2 . 2 1 Hottest 120 | . . 60 . 120 20 Shots Fired 69 | . . 10 . 37 22 Gun 60 | . . 10 . 28 22 Cannon . | . . . . . . Launcher . | . . . . . . Special 9 | . . . . 9 . Kinetic 52 | . . 5 . 25 22 Thermal 9 | . . . . 9 . Explosive . | . . . . . . Electromagnetic 8 | . . 5 . 3 . Robot Hit Streak 10 | . . 3 . 10 8 Robot Miss Streak 2 | . . 1 . 2 1 Penetration Max . | . . . . . . Secondary Targets 1 | . . 1 . . . Max Gunslinging Chain 1 | . . 1 . . . Shots Hit Robots 52 | . . 6 . 27 19 Core Hits 18 | . . 2 . 9 7 Critical Hits . | . . . . . . Critical Kills . | . . . . . . Critical Parts Destroyed . | . . . . . . Melee Attacks . | . . . . . . Impact . | . . . . . . Slashing . | . . . . . . Piercing . | . . . . . . Sneak Attacks . | . . . . . . Combat Hostiles . | . . . . . . Follow-up Attacks . | . . . . . . Damage Inflicted 542 | . . 51 . 318 173 Guns 422 | . . 51 . 198 173 Cannons . | . . . . . . Explosions . | . . . . . . Melee . | . . . . . . Ramming . | . . . . . . Kinetic 355 | . . 7 . 175 173 Thermal 120 | . . . . 120 . Explosive . | . . . . . . Electromagnetic 67 | . . 44 . 23 . Impact . | . . . . . . Slashing . | . . . . . . Piercing . | . . . . . . Highest Corruption 1 | . 1 1 1 1 . Average Corruption 1 | . 1 1 1 1 . Corruption Purged . | . . . . . . Effects 7 | . . . 3 4 . Message Errors 2 | . . . 2 . . Energy Discharges 1 | . . . . 1 . Data Loss (minor) 2 | . . . 1 1 . Targeting Errors 2 | . . . . 2 . Overload Shots . | . . . . . . Overflow Damage . | . . . . . . Projectiles . | . . . . . . Explosions . | . . . . . . Melee . | . . . . . . Knockbacks . | . . . . . . Impact . | . . . . . . Kinetic . | . . . . . . Secondary . | . . . . . . Self-Inflicted Damage . | . . . . . . Shots . | . . . . . . Rammed 2 | . . . . . 2 Targets Rammed 2 | . . . . . 2 Kicked . | . . . . . . Crushed . | . . . . . . Highest Temperature 134 | . . 40 . 134 18 Average Temperature 48 | . . 23 . 64 9 Received Heat Transfer 636 | . . . . 168 468 Siege Activations . | . . . . . . Robots Corrupted . | . . . . . . Combat Hostiles . | . . . . . . Parts Fried . | . . . . . . Impact Corruptions . | . . . . . . Robots Melted . | . . . . . . Combat Hostiles . | . . . . . . Parts Melted . | . . . . . . Heat Transferred 250 | . . . . 250 . Parts Sabotaged . | . . . . . . Parts Stolen . | . . . . . . Parts Stripped . | . . . . . . Power Chain Reactions . | . . . . . . Missiles Intercepted . | . . . . . . Alert | -11 -10 -10 -10 -9 -8 ------- Run | Scr Mat Min Exi Min Mat Peak Influence 74 | . 2 74 . 30 30 Average Influence 16 | . . 45 . 15 5 Maximum Alert Level . | . . . . . . Low Security (%) 100 | 100 100 100 . 100 100 Level 1 . | . . . . . . Level 2 . | . . . . . . Level 3 . | . . . . . . Level 4 . | . . . . . . Level 5 . | . . . . . . High Security . | . . . . . . Max Security . | . . . . . . Squads Dispatched 2 | . . . . . 2 Investigation . | . . . . . . Extermination . | . . . . . . Reinforcement 1 | . . . . . 1 Assault . | . . . . . . Garrison 1 | . . . . . 1 Intercept . | . . . . . . Construction Impeded . | . . . . . . Haulers Reinforced . | . . . . . . Stealth | -11 -10 -10 -10 -9 -8 --------- Run | Scr Mat Min Exi Min Mat Distress Signals . | . . . . . . Communications Jammed . | . . . . . . Distress Signals . | . . . . . . Times Spotted 10 | . . 3 . 2 5 Peak Tracking Total 5 | . . 3 . 2 5 Tactical Retreats . | . . . . . . Traps | -11 -10 -10 -10 -9 -8 ------- Run | Scr Mat Min Exi Min Mat Traps Triggered . | . . . . . . Indirectly . | . . . . . . Trap Hack Attempts . | . . . . . . Triggered . | . . . . . . Disarmed . | . . . . . . Reprogrammed . | . . . . . . Reused . | . . . . . . Traps Extracted . | . . . . . . Installed . | . . . . . . Triggered . | . . . . . . Machines | -11 -10 -10 -10 -9 -8 ---------- Run | Scr Mat Min Exi Min Mat Machines Disabled . | . . . . . . Max in Single Turn . | . . . . . . Machines Sabotaged . | . . . . . . Garrisons Compromised . | . . . . . . Overloaded Fab Kills . | . . . . . . Fab Network Shutdowns . | . . . . . . Hacking | -11 -10 -10 -10 -9 -8 --------- Run | Scr Mat Min Exi Min Mat Machines Accessed 5 | . 1 . 4 . . Terminals 1 | . 1 . . . . Fabricators . | . . . . . . Repair Stations . | . . . . . . Recycling Units . | . . . . . . Scanalyzers . | . . . . . . Garrison Access . | . . . . . . Total Hacks 51 | . 3 . 48 . . Successful 49 | . 1 . 48 . . Failed 2 | . 2 . . . . Catastrophic . | . . . . . . Database Lockouts . | . . . . . . Manual 2 | . . . 2 . . Terminals 3 | . 3 . . . . Fabricators . | . . . . . . Repair Stations . | . . . . . . Recycling Units . | . . . . . . Scanalyzers . | . . . . . . Garrison Access . | . . . . . . Terminal Hacks 49 | . 1 . 48 . . Record 49 | . 1 . 48 . . Fabricator Hacks . | . . . . . . Repair Station Hacks . | . . . . . . Recycling Unit Hacks . | . . . . . . Scanalyzer . | . . . . . . Garrison Access Hacks . | . . . . . . Unauthorized Hacks . | . . . . . . Terminals . | . . . . . . Fabricators . | . . . . . . Repair Stations . | . . . . . . Recycling Units . | . . . . . . Scanalyzers . | . . . . . . Garrison Access . | . . . . . . Data Cores Recovered . | . . . . . . Used . | . . . . . . Hacking Detections 1 | . 1 . . . . Full Trace Events 1 | . 1 . . . . Feedback Events 1 | . 1 . . . . Corruption 1 | . 1 . . . . Feedback Blocked . | . . . . . . Robot Schematics Acquired . | . . . . . . Robots Built . | . . . . . . Matter . | . . . . . . Time . | . . . . . . Total Robot Build Rating . | . . . . . . Part Schematics Acquired . | . . . . . . Parts Built . | . . . . . . Matter . | . . . . . . Time . | . . . . . . Total Part Build Rating . | . . . . . . Parts Repaired . | . . . . . . Time . | . . . . . . Parts Recycled . | . . . . . . Recycled Matter . | . . . . . . Retrieved Matter . | . . . . . . Retrieved Components . | . . . . . . Parts Scanalyzed . | . . . . . . Part Schematics Acquired . | . . . . . . Parts Damaged . | . . . . . . Bothacking | -11 -10 -10 -10 -9 -8 ------------ Run | Scr Mat Min Exi Min Mat Used RIF Installer . | . . . . . . Robots Hacked . | . . . . . . Non-combat . | . . . . . . Combat . | . . . . . . Robot Hacks Applied . | . . . . . . Relay Couplers Released . | . . . . . . Robots Rewired . | . . . . . . Allies Hacked . | . . . . . . Hacks Repelled . | . . . . . . Allies | -11 -10 -10 -10 -9 -8 -------- Run | Scr Mat Min Exi Min Mat Total Allies 1 | . . 1 . . . Largest Group 1 | . . 1 1 . . Highest-Rated Group 31 | . . 31 31 . . Highest-Rated Ally 31 | . . 31 31 . . Total Orders . | . . . . . . Ally Attacks 7 | . . 7 . . . Total Damage 61 | . . 61 . . . Kills 1 | . . 1 . . . Allies Corrupted . | . . . . . . Allies Melted . | . . . . . . Intel | -11 -10 -10 -10 -9 -8 ------- Run | Scr Mat Min Exi Min Mat Robot Analysis Total . | . . . . . . Derelict Logs Recovered . | . . . . . . Drone Launches . | . . . . . . Drone Recoveries . | . . . . . . Exploration | -11 -10 -10 -10 -9 -8 ------------- Run | Scr Mat Min Exi Min Mat Turns Passed 1920 | 92 67 187 989 425 160 Spaces Moved 1082 | 54 41 105 612 210 60 Core 19 | 9 . . . . 10 Treads 1057 | 39 41 105 612 210 50 Legs . | . . . . . . Wheels 6 | 6 . . . . . Hover . | . . . . . . Flight . | . . . . . . Fastest Speed 50 | 50 160 160 160 160 160 Average Speed 160 | 134 160 160 160 160 185 Slowest Speed 300 | 160 160 160 160 160 300 Overloaded Moves . | . . . . . . Propulsion Burnouts . | . . . . . . Robots Hopped . | . . . . . . Cave-ins Triggered . | . . . . . . Exploration Rate (%) 27 | 4 12 21 92 30 5 Regions Visited 5 Branch Regions 3 Pre-discovered Areas 1 | . . . 1 . . Known Exits Taken . | . . . . . . Unknown Exits Taken 5 | 1 1 1 1 1 . Scrap Searched 1 | . . . . 1 . Spaces Dug . | . . . . . . Terrain Destroyed 2 | . . . . 2 . Melee . | . . . . . . Projectile 2 | . . . . 2 . AOE . | . . . . . . Actions | -11 -10 -10 -10 -9 -8 --------- Run | Scr Mat Min Exi Min Mat Total 1194 | 75 44 117 622 249 87 Wait 13 | 2 . . 9 2 . Move 1077 | 53 40 104 611 209 60 Hop . | . . . . . . Pick Up 19 | 8 1 5 1 2 2 Fast Attach . | . . . . . . Attach 15 | 9 1 . . 4 1 Detach 2 | 1 1 . . . . Swap . | . . . . . . Drop 7 | 2 1 3 1 . . Fire 59 | . . 5 . 32 22 Melee . | . . . . . . Ram 2 | . . . . . 2 Kick . | . . . . . . Crush . | . . . . . . Escape Stasis . | . . . . . . Rewire . | . . . . . . Trap . | . . . . . . Miscellaneous . | . . . . . . Route ------- -11/Scrapyard -10/Materials -10/Mines -10/Exiles (discovered 2 exits: [*Min x2]) -9/Mines -8/Materials History --------- Turn | Location | Event 8 | -11/Scrapyard | Discovered new exit (range 15) 93 | -11/Scrapyard | Entered Materials 113 | -10/Materials | Discovered new exit (range 16) 160 | -10/Materials | Entered Mines 207 | -10/Mines | Received a Mining Laser from a helpful Derelict 306 | -10/Mines | Build established: Mutant 339 | -10/Mines | Deemed a non-threat by the Exiles lab entrance 341 | -10/Mines | Discovered new exit (range 5) 347 | -10/Mines | Entered Exiles 347 | -10/Exiles | Accompanied by 1 ally 373 | -10/Exiles | Discovered new exit (range 15) 424 | -10/Exiles | Met 8R-AWN 463 | -10/Exiles | Met EX-HEX 554 | -10/Exiles | Met EX-BIN 728 | -10/Exiles | Met EX-DEC 747 | -10/Exiles | Learned location of Zion (-7) 838 | -10/Exiles | Discovered new exit (range 12) 1071 | -10/Exiles | Visited The Gauntlet 1336 | -10/Exiles | Entered Mines 1472 | -9/Mines | Core integrity fell below 50% 1504 | -9/Mines | Lost 5 parts (1p1n3w) 1751 | -9/Mines | Discovered new exit (range 6) 1761 | -9/Mines | Entered Materials 1761 | -8/Materials | Evolved 4 slots: Power x1, Propulsion x1, Utility x1, Weapon x1 1821 | -8/Materials | Garrison activated, responded to threat 1892 | -8/Materials | Core integrity fell below 50% 1908 | -8/Materials | Core integrity fell below 20% 1916 | -8/Materials | Lost 4 parts (2p1n1w) 1921 | -8/Materials | Destroyed by G-47 Trooper with Particle Gun Last Messages --------------- Acquired 85 matter. Acquired Lgt. Ion Engine. Acquired 5 matter. EXIT=FOUND PARAMETERS=POWER_1,PROPULSION_1,UTILITY_1,WEAPON_1 LOCATION=UNKNOWN GOAL=ESCAPE Acquired Lgt. Deuterium Engine. A-02 Transporter calls for garrison support. ALERT: Activating Garrison Access M001. [Achievement: Troublemaker] Lgt. Treads destroyed. ALERT: Hostiles spotted, dispatching reinforcements to Terminal M012. Imp. Treads destroyed. Lgt. Ion Engine destroyed. Lgt. Assault Rifle destroyed. Slammed into G-47 Trooper. Lgt. Deuterium Engine destroyed. Slammed into G-47 Trooper. Acquired Shotgun. Map ----- +----------------------------------------------------+ | ?????????????????????????????? | | ?????????????????????????????? | | ?????????????????????????????? | | ?????????????????????????????? | | ?????????????????????????????? | | ?????????????????????????????? | | ?????????????????????????????? | | ?????????????????????????????? | | ?????????????????????????????? | | ?????????????????????????????? | | ?????????????????????????????? | | ?????????????????????????????? | | ?????????????????????????????? | | ?????????????????????????????? | | ?????????????????????????????? | | ?????????????????????????????? | | ??????????????+??????????????? | | ??????????????# ?????????????? | | ??????????????? ????????????? | | ???????????????? ######?????? | | ?????????????????? ####### | | ???????????????????aY # # | | ????????????????????# #! # | | ????????????????????# o#g # | | ????????????????????#a Yg ! # | | ????????????????????# # @! # | | ????????????????????# # [ [# | | ????????????????????# # # | | ????????????????????# ####### | | ????????????????????# #???? | | ????????????????????#### #???? | | ???????????????????????# #???? | | ???????????????????????# #???? | | ???????????????????????# #???? | | ???????????????????????# #???? | | ???????????????????????# #???? | | ???????????????????????# #???? | | ???????????????????????# #???? | | ?????? ????????????????# #???? | | ??????? ???????????????# #???? | | ???????? ??????????????# #???? | | ????????# ?????????????# #???? | | ????????# ????????????# #???? | | ????????# ???????????# #???? | | ???????## #??????????# #???? | | ???????# ########??# #???? | | ???????# #??# #???? | | ???????# #??# #???? | | ???????# #??# #???? | | ???????# ###+####### #???? | +----------------------------------------------------+ Best States ------------- Heat Dissipation 31 Energy Generation 19 Energy Capacity 250 Matter Stores 300 Matter Capacity 300 Sight Range 16 Terrain Scan Density 10 Evasion (%) 50 Recoil Reduction 2 Item Schematics ----------------- None Robot Schematics ------------------ None Fabricated ------------ Nothing Alien Tech Used ----------------- None Achievements -------------- Librarian Tourist Troublemaker Challenges ------------ None Game ------ Seed GrenadeCryofiberRail Manual? 0 Play Time 00:19:53 Cumulative 1.7 hours Start 2020.04.02 @ 20:24:33 End 2020.04.02 @ 20:44:10 Sessions 1 Manual Loads 0 Difficulty Rogue Special Mode None Game No. 3 Rogue 3 Adventurer 0 Explorer 0 Win Type - Total 0 Types 0/0/0/0/0/0/0 Lore% 10 Gallery% 4 Achievement% 3 Wizard Run 0 Options --------- ASCII 0 Keyboard 0 Movement Mouse Keybinds 0 Fullscreen 1 Font 24/Crisp Map View 76x50 Tactical HUD 0 Map Filters NONE Filters NONE Steam 1 RUN: 195a1193-5ede-468d-8edd-b0b87dff329a